Cogmind - Beta 17 @@@ ROGUE MODE // 2026.08.17 @ 22:14:40 Player: Fedop Result: Destroyed by 7K-7W4(R) with Subdweller Shrapnel Launcher Performance ------------- Evolutions (0) 0 Regions Visited (2) 400 Robots Destroyed (24) 120 Value Destroyed (495) 495 Prototype IDs (4) 80 Alien Tech Used (0) 0 Bonus (0) 0 TOTAL SCORE: 1095 Bonus ------- None Cogmind --------- Core Integrity 0/250 Matter 219/300 Energy 125/125 System Corruption 0% Temperature Cool (0) Movement Core (200) Ox3 Location -10/Subcaves Parts ------- > --- POWER (1) -------- Light Ion Engine > --- PROPULSION (2) --- (None) > --- UTILITY (2) ------ (None) > --- WEAPON (2) ------- Particle Gun Subdweller Machine Gun > --- INVENTORY (5) ---- Light Ion Engine Light Treads Particle Gun Makeshift Hammer Peak State ------------ > --- POWER ------------ Light Ion Engine > --- PROPULSION ------- Light Treads Light Treads > --- UTILITY ---------- Scrap Shield > --- WEAPON ----------- Subdweller Machine Gun Makeshift Hammer > --- INVENTORY -------- Light Ion Engine Light Treads Particle Gun Particle Gun Particle Gun [Rating: 13] Favorites ----------- Power Ion Engine Engine Ion Engine Propulsion Light Treads Treads Light Treads Utility Light Armor Plating Device Seismic Detector Storage Medium Storage Unit Protection Light Armor Plating Weapon Particle Gun Energy Gun Particle Gun Ballistic Gun Assault Rifle Impact Weapon Flail Build | -11 -10 -10 ------- Run | Yrd Mat Sub Slots Evolved . | . . . Power . | . . . Propulsion . | . . . Utility . | . . . Weapon . | . . . Parts Attached 22 | 7 7 8 Power 3 | 1 1 1 Engine 3 | 1 1 1 Core . | . . . Reactor . | . . . Propulsion 4 | 2 . 2 Treads 4 | 2 . 2 Leg . | . . . Wheel . | . . . Hover . | . . . Flight . | . . . Utility 7 | 2 4 1 Device 3 | 1 2 . Storage 2 | 1 1 . Processor . | . . . Hackware . | . . . Protection 2 | . 1 1 Artifact . | . . . Weapon 8 | 2 2 4 Energy Gun 4 | 1 2 1 Energy Cannon . | . . . Ballistic Gun 2 | 1 . 1 Ballistic Cannon . | . . . Launcher . | . . . Special Weapon . | . . . Impact Weapon 2 | . . 2 Slashing Weapon . | . . . Piercing Weapon . | . . . Special Melee Weapon . | . . . Unidentified Prototypes . | . . . Parts Lost 4 | . . 4 Power . | . . . Propulsion 2 | . . 2 Utility 1 | . . 1 Weapon 1 | . . 1 Highest Loss Streak 4 | . . 4 To Critical Strikes . | . . . Average Backups 7 | 2 7 5 Power 1 | . 1 1 Propulsion 1 | . 1 1 Utility 2 | . 3 . Weapon 1 | 1 1 2 Tool/Special . | . . . Unused Backups 9 | . 8 1 Power 1 | . . 1 Propulsion 1 | . 1 . Utility 5 | . 5 . Weapon 2 | . 2 . Tool/Special . | . . . Average Slot Usage (%) 97 | . 99 86 Engine 14 | . 14 14 Treads 27 | . 28 27 Device 5 | . 5 4 Storage 11 | . 13 4 Protection 8 | . 8 8 Energy Gun 19 | . 21 11 Ballistic Gun 6 | . 6 8 Impact Weapon 1 | . . 7 Peak Build Rating 13 | 7 10 13 Average Rating 8 | 5 8 10 On Entrance 5 | . 7 10 Avg Prop Armor Cover (%) . | . . . Naked Turns . | . . . Heaviest Build 28 | 12 24 28 Greatest Support 40 | 40 40 40 Greatest Overweight (x) . | . . . Average Overweight (x) . | . . . Largest Inventory Capacity 10 | 8 10 10 Average Capacity 8 | 7 8 6 Most Carried 10 | 4 10 9 Average Carried 7 | 2 7 5 Final Capacity 10 | 8 10 5 Final Carried 9 | 4 9 4 Class Distribution -------------------- 100% | Mutant Dominant Class ---------------- Mutant | -10/Materials Mutant | -10/Subcaves Resources | -11 -10 -10 ----------- Run | Yrd Mat Sub Matter Collected 607 | 261 287 59 Remotely . | . . . Salvage Created 755 | 73 631 51 Parts 51 | 7 40 4 Haulers Intercepted 1 | . 1 . Recyclers Shooed 1 | . 1 . Parts Field Recycled . | . . . Retrieved Matter . | . . . Parts Self-Destructed 13 | . . 13 Prevented . | . . . Parts Restored . | . . . Kills | -11 -10 -10 ------- Run | Yrd Mat Sub Combat Hostiles Destroyed 14 | . 10 4 Guns 14 | . 10 4 Classes Destroyed 8 | 2 5 1 Worker 1 | . 1 . Tunneler 2 | 1 1 . Hauler 1 | . 1 . Recycler 3 | 1 2 . Watcher 3 | . 3 . Swarmer 4 | . 1 3 Grunt 9 | . 9 . Subdweller 1 | . . 1 Best Kill Streak 3 | 1 3 3 Combat Bots Only 3 | . 2 3 Max Kills in Single Turn 1 | 1 1 1 Gunslinging . | . . . Exploded . | . . . Melee . | . . . Uniques/NPCs Destroyed . | . . . Combat | -11 -10 -10 -------- Run | Yrd Mat Sub Hostile Shots Fired 109 | . 58 51 Missed 34 | . 16 18 Hits 75 | . 42 33 Projectile 75 | . 42 33 AOE 10 | . . 10 Critical Strikes 1 | . . 1 Damage Taken 1496 | . 519 977 Core 279 | . 64 215 Absorbed by Shields . | . . . Core Remaining (%) 100 | 100 . . Volleys Fired 80 | 6 54 20 Largest 2 | 2 2 2 Hottest 130 | 60 130 95 Shots Fired 157 | 12 108 37 Gun 157 | 12 108 37 Cannon . | . . . Launcher . | . . . Special . | . . . Kinetic 66 | 6 40 20 Thermal 91 | 6 68 17 Explosive . | . . . Electromagnetic . | . . . Robot Hit Streak 12 | 9 12 11 Robot Miss Streak 4 | 3 4 2 Penetration Max . | . . . Secondary Targets 3 | . . 3 Max Gunslinging Chain 1 | . . 1 Shots Hit Robots 107 | 9 70 28 Core Hits 37 | 3 29 5 Critical Kills . | . . . Critical Parts Destroyed . | . . . Critical Strikes 1 | . 1 . Burn 1 | . 1 . Melee Attacks 3 | . . 3 Impact 3 | . . 3 Slashing . | . . . Piercing . | . . . Sneak Attacks . | . . . Combat Hostiles . | . . . Follow-up Attacks . | . . . Damage Inflicted 1507 | 106 870 531 Guns 1506 | 106 869 531 Cannons . | . . . Explosions . | . . . Melee . | . . . Ramming 1 | . 1 . Kinetic 652 | 59 308 285 Thermal 854 | 47 561 246 Explosive . | . . . Electromagnetic . | . . . Impact . | . . . Slashing . | . . . Piercing . | . . . Highest Corruption . | . . . Average Corruption . | . . . Corruption Purged . | . . . Corruption Blocked . | . . . Overload Shots . | . . . Overflow Damage . | . . . Projectiles . | . . . Explosions . | . . . Melee . | . . . Knockbacks . | . . . Impact . | . . . Kinetic . | . . . Secondary . | . . . Self-Inflicted Damage . | . . . Shots . | . . . Rammed 1 | . 1 . Targets Rammed 1 | . 1 . Kicked . | . . . Crushed . | . . . Highest Temperature 406 | . 406 . Average Temperature 78 | . 78 . Received Heat Transfer 357 | . 279 78 Siege Activations . | . . . Martial Activations . | . . . Shielding Activations . | . . . Robots Disrupted . | . . . Combat Hostiles . | . . . Robots Corrupted . | . . . Combat Hostiles . | . . . Parts Fried . | . . . Impact Corruptions . | . . . Robots Melted . | . . . Combat Hostiles . | . . . Parts Melted . | . . . Heat Transferred 2046 | 100 1391 555 Parts Sabotaged . | . . . Parts Stolen . | . . . Parts Stripped . | . . . Power Chain Reactions . | . . . Alert | -11 -10 -10 ------- Run | Yrd Mat Sub Maximum Alert Level . | . . . Low Security (%) 100 | 100 100 . Level 1 . | . . . Level 2 . | . . . Level 3 . | . . . Level 4 . | . . . Level 5 . | . . . High Security . | . . . Max Security . | . . . Peak Influence 76 | 5 76 . Initial . | . . . Average 16 | . 18 . Influence Increases 521 | 10 391 120 Destroy 0b10 Robot/C 260 | . 200 60 Destroy 0b10 Robot/NC 50 | 10 40 . Destroy Leader 48 | . 48 . Successful Hack 58 | . 58 . Lose Combat Pursuer 105 | . 45 60 Influence Decreases 521 | 10 350 161 Entered New Map 21 | . . 21 Time Decay 476 | 10 350 116 Lost Part 24 | . . 24 Squads Dispatched 4 | . 4 . Investigation 4 | . 4 . Extermination . | . . . Reinforcement . | . . . Assault . | . . . Garrison . | . . . Intercept . | . . . Searches Triggered . | . . . Construction Impeded . | . . . Haulers Reinforced . | . . . Active Scanning Responses . | . . . Cargo Convoy Interrupts . | . . . Stealth | -11 -10 -10 --------- Run | Yrd Mat Sub Distress Signals 1 | . 1 . Communications Jammed . | . . . Distress Signals . | . . . Times Spotted 31 | . 21 10 Peak Tracking Total 6 | . 3 6 Tactical Retreats 4 | . 2 2 Traps | -11 -10 -10 ------- Run | Yrd Mat Sub Traps Triggered 4 | . 2 2 Indirectly . | . . . Trap Hack Attempts . | . . . Triggered . | . . . Disarmed . | . . . Reprogrammed . | . . . Reused . | . . . Traps Extracted . | . . . Installed . | . . . Triggered . | . . . Machines | -11 -10 -10 ---------- Run | Yrd Mat Sub Machines Disabled . | . . . Max in Single Turn . | . . . Machines Repaired . | . . . Machines Dismantled . | . . . Machines Sabotaged . | . . . Overloaded Fab Kills . | . . . Hacking | -11 -10 -10 --------- Run | Yrd Mat Sub Machines Accessed 7 | . 7 . Terminals 7 | . 7 . Fabricators . | . . . Repair Stations . | . . . Recycling Units . | . . . Scanalyzers . | . . . Garrison Access . | . . . Total Hacks 24 | . 24 . Successful 15 | . 15 . Failed 9 | . 9 . Catastrophic 3 | . 3 . Database Lockouts . | . . . Manual 19 | . 19 . Terminals 24 | . 24 . Fabricators . | . . . Repair Stations . | . . . Recycling Units . | . . . Scanalyzers . | . . . Garrison Access . | . . . Terminal Hacks 9 | . 9 . Part Schematic 3 | . 3 . Robot Analysis 1 | . 1 . Prototype ID Bank 2 | . 2 . Emergency Access Points 1 | . 1 . Hauler Manifests 1 | . 1 . Registered Components 1 | . 1 . Fabricator Hacks . | . . . Repair Station Hacks . | . . . Recycling Unit Hacks . | . . . Scanalyzer . | . . . Garrison Access Hacks . | . . . Unauthorized Hacks 6 | . 6 . Terminals 6 | . 6 . Botnet 6 | . 6 . Fabricators . | . . . Repair Stations . | . . . Recycling Units . | . . . Scanalyzers . | . . . Garrison Access . | . . . Data Cores Recovered . | . . . Used . | . . . Hacking Detections 7 | . 7 . Full Trace Events 3 | . 3 . Feedback Events . | . . . Feedback Blocked . | . . . Robot Schematics Acquired . | . . . Robots Built . | . . . Authchips . | . . . Time . | . . . Total Robot Build Rating . | . . . Part Schematics Acquired 3 | . 3 . Parts Built . | . . . Authchips . | . . . Time . | . . . Total Part Build Rating . | . . . Part Studies Acquired . | . . . Parts Repaired . | . . . Time . | . . . Parts Recycled . | . . . Recycled Matter . | . . . Retrieved Matter . | . . . Retrieved Components . | . . . Parts Scanalyzed . | . . . Part Schematics Acquired . | . . . Parts Damaged . | . . . Bothacking | -11 -10 -10 ------------ Run | Yrd Mat Sub Used RIF Installer . | . . . Robots Hacked . | . . . Non-combat . | . . . Combat . | . . . Robot Hacks Applied . | . . . Relay Couplers Released . | . . . Fabnet Peak Effective % . | . . . Robots Rewired . | . . . Allies Hacked . | . . . Hacks Repelled . | . . . Allies | -11 -10 -10 -------- Run | Yrd Mat Sub Total Allies . | . . . Largest Group . | . . . Highest-Rated Group . | . . . Highest-Rated Ally . | . . . Total Orders . | . . . Ally Attacks . | . . . Total Damage . | . . . Kills . | . . . Allies Corrupted . | . . . Allies Melted . | . . . Intel | -11 -10 -10 ------- Run | Yrd Mat Sub Active Infowar (turns) 779 | 48 612 119 Seismic 779 | 48 612 119 Robot Analysis Total 1 | . 1 . Derelict Logs Recovered . | . . . Drone Launches . | . . . Drone Recoveries . | . . . Exploration | -11 -10 -10 ------------- Run | Yrd Mat Sub Turns Passed 2265 | 157 1667 441 Spaces Moved 1159 | 80 872 207 Core 2 | 2 . . Treads 1157 | 78 872 207 Legs . | . . . Wheels . | . . . Hover . | . . . Flight . | . . . Fastest Speed 50 | 50 160 160 Average Speed 159 | 157 160 160 Slowest Speed 160 | 160 160 160 Overloaded Moves . | . . . Propulsion Burnouts . | . . . Robots Hopped . | . . . Potential Cave-ins . | . . . Cave-ins Triggered . | . . . Exploration Rate (%) 36 | 4 94 12 Regions Visited 2 Branch Regions 1 Pre-discovered Areas 1 | . . 1 Known Exits Taken . | . . . Unknown Exits Taken 2 | 1 1 . Scrap Searched . | . . . Spaces Dug 1 | . . 1 Terrain Destroyed 2 | . . 2 Melee 1 | . . 1 Projectile 1 | . . 1 AOE . | . . . Terrain Rammed . | . . . Walls Destroyed . | . . . Machines Disabled . | . . . Actions | -11 -10 -10 --------- Run | Yrd Mat Sub Total 1410 | 96 1037 277 Wait 69 | . 59 10 Move 1157 | 79 871 207 Hop . | . . . Pick Up 38 | 4 24 10 Fast Attach 11 | 7 3 1 Attach 3 | . 1 2 Detach . | . . . Swap 19 | . 10 9 Drop 29 | . 14 15 Fire 80 | 6 54 20 Melee 3 | . . 3 Ram . | . . . Kick . | . . . Crush 1 | . 1 . Escape Stasis . | . . . Rewire . | . . . Trap . | . . . Miscellaneous . | . . . Route ------- -11/Scrapyard -10/Materials (discovered 6 exits: [*Mat x3] / [*Min x2] / [*Sub]) -10/Subcaves (discovered 2 exits: [*Mat] / [*Rec]) History --------- Turn | Location | Event 28 | -11/Scrapyard | Discovered new exit (range 15) 158 | -11/Scrapyard | Entered Materials 178 | -10/Materials | Discovered new exit (range 16) 309 | -10/Materials | Build established: Mutant 582 | -10/Materials | Discovered new exit (range 15) 689 | -10/Materials | Discovered new exit (range 5) 890 | -10/Materials | Discovered new exit (range 13) 1044 | -10/Materials | Discovered new exit (range 4) 1757 | -10/Materials | Discovered new exit (range 10) 1825 | -10/Materials | Entered Subcaves 1826 | -10/Subcaves | Approached by a straggling Scientist 1886 | -10/Subcaves | Learned location of Zion (-7) 1886 | -10/Subcaves | Met a Zionite searching for "candidates" 1909 | -10/Subcaves | Shifting Twisted Machinery released Scrap Shield 1935 | -10/Subcaves | Shifting Twisted Machinery released Sub. Machine Gun 2023 | -10/Subcaves | Discovered new exit (range 16) 2044 | -10/Subcaves | Discovered new exit (range 13) 2155 | -10/Subcaves | Shifting Twisted Machinery released Sub. Optics 2159 | -10/Subcaves | Shifting Twisted Machinery released Mak. Hammer 2218 | -10/Subcaves | Core integrity fell below 50% 2221 | -10/Subcaves | Ambushed by Subdweller buried in earth 2253 | -10/Subcaves | Core integrity fell below 20% 2266 | -10/Subcaves | Destroyed by 7K-7W4(R) with Subdweller Shrapnel Launcher Last Messages --------------- 02156_ Triggered Piercing Trap. 02156_ Spikes shoot up from the floor. 02156_ Critical hit (Impale). Mak. Hammer falls loose from the Twisted Machinery. 02178_ Dropped Flail. 02179_ Acquired Mak. Hammer. 82-GDT(c): "I think it's somewhere southwest of here" 02210_ 82-GDT(c) triggered Shrapnel Trap. 02210_ An expanding cloud of shrapnel blasts out in all directions. 02210_ 82-GDT(c) destroyed. 02212_ Acquired 19 matter. 02221_ Scrap Shield destroyed. 02222_ TL-KOL(R): "ARGHSUB!" 02234_ TL-KOL(R) destroyed. 02234_ Switching to secondary target: 7K-7W4(R). 02237_ Acquired 25 matter. 02248_ Particle Gun destroyed. 02248_ Lgt. Treads destroyed. 02264_ Destroyed Scrap Shield. [Achievement: Back For More] Map ----- +----------------------------------------------------+ | ????????????????????????###??????????????????????? | | ???????????????????????# ??????????????????????? | | ??????????????????????? ??????????????????????? | | ???????????????????????# ??????????????????????? | | ??????????????????????? #??????????????????????? | | ???????????????????????#""#??????????????????????? | | ???????????????????????#" "??????????????????????? | | ??????????????????????##"""??????????????????????? | | ??????????????????????#"" #???????? ?????????????? | | ???????????????????????#" ##????? " ?????????????? | | ???????????????????????#" /#???? # #??????????? | | ??????????????????###?##"" #??? #??????????? | | ?????????????????##"#?#""" #?? #??????????? | | ????????????????##""####"" ## ????????? | | ????????????????#"" ! ????????? | | ????????????????#"" # ####???????????????? | | ????????????????## ; ;;####?????????????????? | | ?????????????????#### ; ##^##????????????????? | | ????????????????????##;R ; ## ##???????????????? | | ????????????????????# ; #???????????????? | | ???????????????????##; #???????????????? | | ??????????????????## #????????###?#??? | | ??????????????????#" ####?? ? #?? | | ??????????????????# ^ ;### ??? | | ???????????????????# ; # #?????? | | ???????????????????## @ #?????? | | ???????????????????# #?????? | | ???????????????????# ;;# #????? | | ???????????????????## ; ;## ## #????? | | ????????????????????# ; # #???????#? | | ?????????????????####<### ; # #?????? ## | | ?????????????????"""" """"; ; ##? #?????? # | | ?????????????????" " " "###### ### ##???? # | | ?????????????????" "#???# ###?? #? | | ????????????????? ??### ### #? | | ????????????????? ?### z #? | | ????????????????#" ?# ## | | ???????????????????# ##?# # | | ???????????????????# #??## ! !! | | ???????????????????# #???# ! | | ???????????????????# ###### = | | ???????????????????# ## ## ""#### | | ???????????????????# % ## ### "##???? | | ???????????????????# ## ## ####?????? | | ??????????????????## % ##### "*## #???????? | | ?????????????????## ######" ## ##???????? | | ?????????????????# < # #### #???###??? | | ???????????# ## " ##?## #### | | ???????????# ## ### ## | | ??????????? #?##### ## # | +----------------------------------------------------+ Best States ------------- Heat Dissipation 25 Coolant Potential 50 Energy Generation 10 Energy Capacity 250 Matter Stores 300 Matter Capacity 300 Sight Range 16 Terrain Scan Density 10 Armor Coverage 800 Evasion (%) 40 Recoil Reduction 2 Item Schematics ----------------- Lgt. Ion Engine | -10/Materials | Hacked Hcp. Storage Unit | -10/Materials | Hacked Lgt. Armor Plating | -10/Materials | Hacked Robot Schematics ------------------ None Fabricated ------------ Nothing Repaired ---------- Nothing Studied --------- None Alien Tech Used ----------------- None Achievements -------------- Back For More Challenges ------------ None Game ------ Seed IonicCarbideBeacon Manual? 0 Play Time 00:34:54 Cumulative 66.1 hours Start 2026.08.17 @ 21:30:38 End 2026.08.17 @ 22:14:40 Sessions 1 Manual Loads 0 Difficulty Rogue Special Mode None Game No. 50 Rogue 50 Adventurer 0 Explorer 0 Win Type - Total 0 Types 0/0/0/0/0/0/0/0/0/0 Lore% 30 Gallery% 34 Achievement% 28 Wizard Run 0 Options --------- Layout 0 ASCII 0 Keyboard 1 Movement Vi Keybinds 0 Fullscreen 2 Font 18/SmallcapsGlow Map View 76x50 Zoom Use 0% Tactical HUD 1 Map Filters NONE Filters NONE Steam 1 RUN: c566cb7c-f617-4917-b6ab-46f7af074cab